Workbook

Sheet Dashboard
A1: Sent this month: | D1: 243 | F1: Left process at stage 1: | J1: 372 | L1: Left process at stage 2: | P1: 6 | R1: Exited process: | V1: 37 | X1: Settled: | AA1: 37
A3: Δ from last month: | D3: -181 | F3: Δ from last month: | J3: -164 | L3: Δ from last month: | P3: -2 | R3: Δ from last month: | V3: -6 | X3: Δ from last month: | AA3: 19
A5: Rolling 12 months: | D5: 9079 | F5: Rolling 12 months: | J5: 6592 | L5: Rolling 12 months: | P5: 74 | R5: Rolling 12 months: | V5: 1787 | X5: Rolling 12 months: | AA5: 605
A7: Left Process Breakdowns - Stage 1:
A9: Reason | H9: This Month | J9: Last Month | L9: Δ
A10: Liability Decision Timeout | H10: 367 | J10: 519 | L10: -152
A11: Other | H11: 5 | J11: 8 | L11: -3
A12: Total | H12: 372 | J12: 527 | L12: -155
A13: Left Process Breakdowns - Stage 2:
A15: Reason | H15: This Month | J15: Last Month | L15: Δ
A16: Interim payment more than £1,000 not agreed: | H16: 0 | J16: 0 | L16: 0
A17: Settlement pack repudiated: | H17: 5 | J17: 5 | L17: 0
A18: Settlement pack timeout: | H18: 1 | J18: 2 | L18: -1
A19: No agreement; Court Proceedings pack: | H19: 0 | J19: 1 | L19: -1
A20: Total | H20: 6 | J20: 8 | L20: -2

Sheet Backing Sheet Data
A1: Reporting date | B1: 2024-05-01
A2: Previous month | B2: 2024-04-01
A4: Rolling 12 CNFs sent | D4: Average General Damages chart data | H4: Left Process Breakdown
A6: Period | B6: Rolling 12 Sent | D6: Row Labels | E6: Ave General Damages | H6: This Month LDT | I6: This Month Other Liability | J6: This Month Interim Payment Not Agreed | K6: This Month Repudiated | L6: This Month Timeout | M6: This Month Court Proceedings
A7: 2023-06-01 | B7: 6011 | D7: 2023-06-01 | E7: 3379.112244 | H7: 367 | I7: 5 | J7: 0 | K7: 5 | L7: 1 | M7: 0
A8: 2023-07-01 | B8: 6254 | D8: 2023-07-01 | E8: 3552.074
A9: 2023-08-01 | B9: 6750 | D9: 2023-08-01 | E9: 3686.551063 | H9: CNF Sent Monthly Volumes Chart Data
A10: 2023-09-01 | B10: 9856 | D10: 2023-09-01 | E10: 3420.821978
A11: 2023-10-01 | B11: 9832 | D11: 2023-10-01 | E11: 3185.367924 | H11: Sum of ClaimCount | I11: Column Labels
A12: 2023-11-01 | B12: 9805 | D12: 2023-11-01 | E12: 3973.555 | H12: Row Labels | I12: RTA | J12: PL | K12: ELD | L12: EL | M12: Grand Total
A13: 2023-12-01 | B13: 9665 | D13: 2023-12-01 | E13: 3188.671506 | H13: 2023-06-01 | I13: 7692 | J13: 3447 | K13: 640 | L13: 2559 | M13: 14338
A14: 2024-01-01 | B14: 9615 | D14: 2024-01-01 | E14: 3724.128181 | H14: 2023-07-01 | I14: 7290 | J14: 3348 | K14: 695 | L14: 2467 | M14: 13800
A15: 2024-02-01 | B15: 9532 | D15: 2024-02-01 | E15: 3292.753623 | H15: 2023-08-01 | I15: 7456 | J15: 3395 | K15: 1001 | L15: 2444 | M15: 14296
A16: 2024-03-01 | B16: 9569 | D16: 2024-03-01 | E16: 4435.132075 | H16: 2023-09-01 | I16: 7013 | J16: 3140 | K16: 3515 | L16: 2367 | M16: 16035
A17: 2024-04-01 | B17: 9450 | D17: 2024-04-01 | E17: 3513.388888 | H17: 2023-10-01 | I17: 7826 | J17: 3321 | K17: 423 | L17: 2491 | M17: 14061
A18: 2024-05-01 | B18: 9079 | D18: 2024-05-01 | E18: 3202 | H18: 2023-11-01 | I18: 7717 | J18: 3233 | K18: 468 | L18: 2521 | M18: 13939
D19: Grand Total | E19: 42553.55648 | H19: 2023-12-01 | I19: 5696 | J19: 2256 | K19: 211 | L19: 1618 | M19: 9781
H20: 2024-01-01 | I20: 7490 | J20: 3160 | K20: 451 | L20: 2495 | M20: 13596
H21: 2024-02-01 | I21: 7241 | J21: 3053 | K21: 438 | L21: 2272 | M21: 13004
B22: 3028 | D22: CNF Sent Monthly Volumes | H22: 2024-03-01 | I22: 6870 | J22: 2931 | K22: 570 | L22: 2287 | M22: 12658
A23: Exit Process Reason | B23: Total | H23: 2024-04-01 | I23: 7617 | J23: 2787 | K23: 424 | L23: 2124 | M23: 12952
A24: Claim requires further investigation | B24: 1400 | D24: DatePeriod | E24: ClaimType | F24: ClaimCount | H24: 2024-05-01 | I24: 6270 | J24: 2486 | K24: 243 | L24: 1902 | M24: 10901
A25: Other | B25: 1078 | D25: 2023-03-01 | E25: EL | F25: 600 | H25: Grand Total | I25: 86178 | J25: 36557 | K25: 9079 | L25: 27547 | M25: 159361
A26: Duplicated claim | B26: 290 | D26: 2023-04-01 | E26: EL | F26: 2147
A27: Withdrawl of claim | B27: 126 | D27: 2023-05-01 | E27: EL | F27: 2210
A28: Incomplete information provided on CNF | B28: 102 | D28: 2023-06-01 | E28: EL | F28: 2559
A29: Value of claim exceeds the upper limit | B29: 14 | D29: 2023-07-01 | E29: EL | F29: 2467
A30: Stage 1 costs not paid on time | B30: 6 | D30: 2023-08-01 | E30: EL | F30: 2444
A31: Withdrawal of offer | B31: 5 | D31: 2023-09-01 | E31: EL | F31: 2367
A32: Claim is too complex for process | B32: 3 | D32: 2023-10-01 | E32: EL | F32: 2491
A33: Failure to provide adequate loss of earnings details | B33: 3 | D33: 2023-11-01 | E33: EL | F33: 2521
A34: Failure to acknowledge CNF on time | B34: 1 | D34: 2023-12-01 | E34: EL | F34: 1618
D35: 2024-01-01 | E35: EL | F35: 2495
D36: 2024-02-01 | E36: EL | F36: 2272
D37: 2024-03-01 | E37: EL | F37: 2287
D38: 2024-04-01 | E38: EL | F38: 2124
D39: 2024-05-01 | E39: EL | F39: 1902
D40: 2024-06-01 | E40: EL | F40: 124
D41: 2023-03-01 | E41: ELD | F41: 137
D42: 2023-04-01 | E42: ELD | F42: 543
D43: 2023-05-01 | E43: ELD | F43: 614
D44: 2023-06-01 | E44: ELD | F44: 640
D45: 2023-07-01 | E45: ELD | F45: 695
D46: 2023-08-01 | E46: ELD | F46: 1001
D47: 2023-09-01 | E47: ELD | F47: 3515
D48: 2023-10-01 | E48: ELD | F48: 423
D49: 2023-11-01 | E49: ELD | F49: 468
D50: 2023-12-01 | E50: ELD | F50: 211
D51: 2024-01-01 | E51: ELD | F51: 451
D52: 2024-02-01 | E52: ELD | F52: 438
D53: 2024-03-01 | E53: ELD | F53: 570
D54: 2024-04-01 | E54: ELD | F54: 424
D55: 2024-05-01 | E55: ELD | F55: 243
D56: 2024-06-01 | E56: ELD | F56: 11
D57: 2023-03-01 | E57: PL | F57: 847
D58: 2023-04-01 | E58: PL | F58: 2733
D59: 2023-05-01 | E59: PL | F59: 3169
D60: 2023-06-01 | E60: PL | F60: 3447
D61: 2023-07-01 | E61: PL | F61: 3348
D62: 2023-08-01 | E62: PL | F62: 3395
D63: 2023-09-01 | E63: PL | F63: 3140
D64: 2023-10-01 | E64: PL | F64: 3321
D65: 2023-11-01 | E65: PL | F65: 3233
D66: 2023-12-01 | E66: PL | F66: 2256
D67: 2024-01-01 | E67: PL | F67: 3160
D68: 2024-02-01 | E68: PL | F68: 3053
D69: 2024-03-01 | E69: PL | F69: 2931
D70: 2024-04-01 | E70: PL | F70: 2787
D71: 2024-05-01 | E71: PL | F71: 2486
D72: 2024-06-01 | E72: PL | F72: 152
D73: 2023-03-01 | E73: RTA | F73: 1624
D74: 2023-04-01 | E74: RTA | F74: 6109
D75: 2023-05-01 | E75: RTA | F75: 6855
D76: 2023-06-01 | E76: RTA | F76: 7692
D77: 2023-07-01 | E77: RTA | F77: 7290
D78: 2023-08-01 | E78: RTA | F78: 7456
D79: 2023-09-01 | E79: RTA | F79: 7013
D80: 2023-10-01 | E80: RTA | F80: 7826
D81: 2023-11-01 | E81: RTA | F81: 7717
D82: 2023-12-01 | E82: RTA | F82: 5696
D83: 2024-01-01 | E83: RTA | F83: 7490
D84: 2024-02-01 | E84: RTA | F84: 7241
D85: 2024-03-01 | E85: RTA | F85: 6870
D86: 2024-04-01 | E86: RTA | F86: 7617
D87: 2024-05-01 | E87: RTA | F87: 6270
D88: 2024-06-01 | E88: RTA | F88: 273

Sheet vELDDashboard (hidden)
B1: =SUBTOTAL(9,vELDDashboard[CNFs Sent]) -> 21199 | C1: =SUBTOTAL(9,vELDDashboard[CNFs left at Stage 1]) -> 13100 | D1: =SUBTOTAL(9,vELDDashboard[Stage 2 Exit]) -> 219 | E1: =SUBTOTAL(9,vELDDashboard[Exit process]) -> 4283 | F1: =SUBTOTAL(9,vELDDashboard[Court Pack]) -> 8 | G1: =SUBTOTAL(9,vELDDashboard[Settled claims]) -> 1386 | H1: =SUBTOTAL(9,vELDDashboard[General Damages]) -> 273387.7983
A2: Period | B2: CNFs Sent | C2: CNFs left at Stage 1 | D2: Stage 2 Exit | E2: Exit process | F2: Court Pack | G2: Settled claims | H2: General Damages | J2: Period | K2: Rolling 12 CNF Sent | L2: Rolling 12 CNF Left at Stage 1 | M2: Rolling 12 Stage 2 Exit | N2: Rolling 12 Exit Process | O2: Rolling 12 Court Pack | P2: Rolling 12 Settled Claims | R2: Period | S2: CNFs Sent | T2: CNFs left at Stage 1 | U2: Stage 2 Exit | V2: Exit process | W2: Court Pack | X2: Settled claims | Y2: General Damages
A3: 2019-10-01 | B3: 175 | C3: 83 | D3: 2 | E3: 63 | F3: 0 | G3: 7 | H3: 9071.428571 | J3: =vELDDashboard[[#This Row],[Period]] -> 2019-10-01 | R3: 2019-01-01 | S3: 439 | T3: 207 | U3: 1 | V3: 162 | W3: 1 | X3: 24 | Y3: 3734.385
A4: 2019-11-01 | B4: 153 | C4: 78 | D4: 4 | E4: 52 | F4: 0 | G4: 2 | H4: 9375 | J4: =vELDDashboard[[#This Row],[Period]] -> 2019-11-01 | R4: 2019-02-01 | S4: 469 | T4: 150 | U4: 4 | V4: 131 | W4: 0 | X4: 29 | Y4: 4074.730689
A5: 2020-01-01 | B5: 139 | C5: 75 | D5: 2 | E5: 54 | F5: 0 | G5: 1 | H5: 3625 | J5: =vELDDashboard[[#This Row],[Period]] -> 2020-01-01 | R5: 2019-03-01 | S5: 444 | T5: 247 | U5: 4 | V5: 154 | W5: 1 | X5: 29 | Y5: 3890.427586
A6: 2020-02-01 | B6: 167 | C6: 54 | D6: 0 | E6: 44 | F6: 0 | G6: 1 | H6: 10000 | J6: =vELDDashboard[[#This Row],[Period]] -> 2020-02-01 | R6: 2019-04-01 | S6: 405 | T6: 225 | U6: 3 | V6: 153 | W6: 3 | X6: 36 | Y6: 4254.035277
A7: 2020-03-01 | B7: 147 | C7: 79 | D7: 3 | E7: 56 | F7: 0 | G7: 2 | H7: 6875 | J7: =vELDDashboard[[#This Row],[Period]] -> 2020-03-01 | R7: 2019-05-01 | S7: 418 | T7: 218 | U7: 5 | V7: 144 | W7: 0 | X7: 30 | Y7: 3973.95
A8: 2020-04-01 | B8: 145 | C8: 72 | D8: 0 | E8: 48 | F8: 1 | G8: 2 | H8: 6750 | J8: =vELDDashboard[[#This Row],[Period]] -> 2020-04-01 | R8: 2019-06-01 | S8: 373 | T8: 214 | U8: 6 | V8: 135 | W8: 2 | X8: 22 | Y8: 4900.111818
A9: 2020-05-01 | B9: 86 | C9: 76 | D9: 3 | E9: 36 | F9: 0 | G9: 2 | H9: 9250 | J9: =vELDDashboard[[#This Row],[Period]] -> 2020-05-01 | R9: 2019-07-01 | S9: 431 | T9: 222 | U9: 3 | V9: 130 | W9: 3 | X9: 27 | Y9: 4078.79037
A10: 2020-06-01 | B10: 133 | C10: 68 | D10: 0 | E10: 36 | F10: 0 | G10: 4 | H10: 10000 | J10: =vELDDashboard[[#This Row],[Period]] -> 2020-06-01 | R10: 2019-08-01 | S10: 367 | T10: 206 | U10: 2 | V10: 117 | W10: 0 | X10: 24 | Y10: 4280.075833
A11: 2020-07-01 | B11: 109 | C11: 67 | D11: 0 | E11: 34 | F11: 0 | G11: 1 | H11: 3600 | J11: =vELDDashboard[[#This Row],[Period]] -> 2020-07-01 | R11: 2019-09-01 | S11: 385 | T11: 190 | U11: 5 | V11: 134 | W11: 0 | X11: 28 | Y11: 4135.575
A12: 2020-09-01 | B12: 126 | C12: 56 | D12: 0 | E12: 25 | F12: 0 | G12: 1 | H12: 10000 | J12: =vELDDashboard[[#This Row],[Period]] -> 2020-09-01 | R12: 2019-10-01 | S12: 432 | T12: 174 | U12: 5 | V12: 152 | W12: 1 | X12: 37 | Y12: 4641.112432
A13: 2020-10-01 | B13: 133 | C13: 45 | D13: 0 | E13: 39 | F13: 0 | G13: 3 | H13: 8356.8 | J13: =vELDDashboard[[#This Row],[Period]] -> 2020-10-01 | R13: 2019-11-01 | S13: 327 | T13: 171 | U13: 6 | V13: 114 | W13: 1 | X13: 30 | Y13: 4546.597
A14: 2020-11-01 | B14: 162 | C14: 59 | D14: 0 | E14: 30 | F14: 0 | G14: 2 | H14: 6750 | J14: =vELDDashboard[[#This Row],[Period]] -> 2020-11-01 | K14: =SUM(B3:B14) -> 1675 | L14: 812 | M14: 14 | N14: 517 | O14: 1 | P14: 28 | R14: 2019-12-01 | S14: 254 | T14: 144 | U14: 5 | V14: 95 | W14: 4 | X14: 15 | Y14: 3946.052
A15: 2020-12-01 | B15: 122 | C15: 71 | D15: 0 | E15: 53 | F15: 1 | G15: 3 | H15: 2433.333333 | J15: =vELDDashboard[[#This Row],[Period]] -> 2020-12-01 | K15: 1622 | L15: 800 | M15: 12 | N15: 507 | O15: 2 | P15: 24 | R15: 2020-01-01 | S15: 325 | T15: 132 | U15: 6 | V15: 111 | W15: 2 | X15: 27 | Y15: 3777.607407
A16: 2021-01-01 | B16: 119 | C16: 86 | D16: 0 | E16: 41 | F16: 0 | G16: 3 | H16: 3310.733333 | J16: =vELDDashboard[[#This Row],[Period]] -> 2021-01-01 | K16: =SUM(B5:B16) -> 1588 | L16: 808 | M16: 8 | N16: 496 | O16: 2 | P16: 25 | R16: 2020-02-01 | S16: 364 | T16: 114 | U16: 1 | V16: 97 | W16: 0 | X16: 29 | Y16: 5334.22862
A17: 2021-02-01 | B17: 126 | C17: 37 | D17: 2 | E17: 28 | F17: 0 | G17: 2 | H17: 5930 | J17: =vELDDashboard[[#This Row],[Period]] -> 2021-02-01 | K17: =SUM(B6:B17) -> 1575 | L17: 770 | M17: 8 | N17: 470 | O17: 2 | P17: 26 | R17: 2020-03-01 | S17: 335 | T17: 173 | U17: 4 | V17: 104 | W17: 0 | X17: 48 | Y17: 4100.90625
A18: 2021-03-01 | B18: 187 | C18: 69 | D18: 2 | E18: 45 | F18: 0 | G18: 2 | H18: 13795.2 | J18: =vELDDashboard[[#This Row],[Period]] -> 2021-03-01 | K18: =SUM(B7:B18) -> 1595 | L18: 785 | M18: 10 | N18: 471 | O18: 2 | P18: 27 | R18: 2020-04-01 | S18: 380 | T18: 141 | U18: 1 | V18: 113 | W18: 2 | X18: 50 | Y18: 4034.8254
A19: 2021-05-01 | B19: 137 | C19: 59 | D19: 0 | E19: 35 | F19: 0 | G19: 1 | H19: 17013.87 | J19: =vELDDashboard[[#This Row],[Period]] -> 2021-05-01 | K19: =SUM(B8:B19) -> 1585 | L19: 765 | M19: 7 | N19: 450 | O19: 2 | P19: 26 | R19: 2020-05-01 | S19: 230 | T19: 122 | U19: 7 | V19: 92 | W19: 0 | X19: 38 | Y19: 4309.436842
A20: 2021-07-01 | B20: 208 | C20: 65 | D20: 1 | E20: 35 | F20: 0 | G20: 3 | H20: 6416.666666 | J20: =vELDDashboard[[#This Row],[Period]] -> 2021-07-01 | K20: =SUM(B9:B20) -> 1648 | L20: 758 | M20: 8 | N20: 437 | O20: 1 | P20: 27 | R20: 2020-06-01 | S20: 265 | T20: 171 | U20: 5 | V20: 102 | W20: 0 | X20: 51 | Y20: 4113.323137
A21: 2021-08-01 | B21: 287 | C21: 59 | D21: 1 | E21: 40 | F21: 0 | G21: 1 | H21: 6500 | J21: =vELDDashboard[[#This Row],[Period]] -> 2021-08-01 | K21: =SUM(B10:B21) -> 1849 | L21: 741 | M21: 6 | N21: 441 | O21: 1 | P21: 26 | R21: 2020-07-01 | S21: 274 | T21: 123 | U21: 2 | V21: 86 | W21: 1 | X21: 33 | Y21: 3784.4
A22: 2021-09-01 | B22: 336 | C22: 113 | D22: 8 | E22: 73 | F22: 0 | G22: 21 | H22: 3171.77619 | J22: =vELDDashboard[[#This Row],[Period]] -> 2021-09-01 | K22: =SUM(B11:B22) -> 2052 | L22: 786 | M22: 14 | N22: 478 | O22: 1 | P22: 43 | R22: 2020-08-01 | S22: 160 | T22: 104 | U22: 1 | V22: 69 | W22: 0 | X22: 20 | Y22: 4155.127
A23: 2021-10-01 | B23: 359 | C23: 172 | D23: 4 | E23: 71 | F23: 0 | G23: 46 | H23: 3425.783695 | J23: =vELDDashboard[[#This Row],[Period]] -> 2021-10-01 | K23: =SUM(B12:B23) -> 2302 | L23: 891 | M23: 18 | N23: 515 | O23: 1 | P23: 88 | R23: 2020-09-01 | S23: 297 | T23: 113 | U23: 2 | V23: 66 | W23: 0 | X23: 21 | Y23: 4429.123809
A24: 2021-11-01 | B24: 429 | C24: 196 | D24: 6 | E24: 109 | F24: 1 | G24: 37 | H24: 3912.088648 | J24: =vELDDashboard[[#This Row],[Period]] -> 2021-11-01 | K24: =SUM(B13:B24) -> 2605 | L24: 1031 | M24: 24 | N24: 599 | O24: 2 | P24: 124 | R24: 2020-10-01 | S24: 309 | T24: 100 | U24: 2 | V24: 104 | W24: 0 | X24: 35 | Y24: 4108.028
A25: 2021-12-01 | B25: 282 | C25: 208 | D25: 4 | E25: 93 | F25: 0 | G25: 31 | H25: 3562.285483 | J25: =vELDDashboard[[#This Row],[Period]] -> 2021-12-01 | K25: =SUM(B14:B25) -> 2754 | L25: 1194 | M25: 28 | N25: 653 | O25: 2 | P25: 152 | R25: 2020-11-01 | S25: 286 | T25: 127 | U25: 1 | V25: 66 | W25: 0 | X25: 32 | Y25: 3741.734375
A26: 2022-01-01 | B26: 381 | C26: 203 | D26: 5 | E26: 98 | F26: 0 | G26: 62 | H26: 3547.137903 | J26: =vELDDashboard[[#This Row],[Period]] -> 2022-01-01 | K26: =SUM(B15:B26) -> 2973 | L26: 1338 | M26: 33 | N26: 721 | O26: 2 | P26: 212 | R26: 2020-12-01 | S26: 249 | T26: 118 | U26: 3 | V26: 91 | W26: 1 | X26: 38 | Y26: 3454.545
A27: 2022-02-01 | B27: 327 | C27: 169 | D27: 4 | E27: 62 | F27: 0 | G27: 60 | H27: 3531.957666 | J27: =vELDDashboard[[#This Row],[Period]] -> 2022-02-01 | K27: =SUM(B16:B27) -> 3178 | L27: 1436 | M27: 37 | N27: 730 | O27: 1 | P27: 269 | R27: 2021-01-01 | S27: 310 | T27: 135 | U27: 2 | V27: 96 | W27: 0 | X27: 44 | Y27: 3490.159772
A28: 2022-03-01 | B28: 448 | C28: 239 | D28: 5 | E28: 71 | F28: 0 | G28: 32 | H28: 4654.525312 | J28: =vELDDashboard[[#This Row],[Period]] -> 2022-03-01 | K28: =SUM(B17:B28) -> 3507 | L28: 1589 | M28: 42 | N28: 760 | O28: 1 | P28: 298 | R28: 2021-02-01 | S28: 161 | T28: 81 | U28: 1 | V28: 53 | W28: 0 | X28: 45 | Y28: 3844.666666
A29: 2022-04-01 | B29: 360 | C29: 203 | D29: 5 | E29: 82 | F29: 0 | G29: 7 | H29: 4386.034285 | J29: =vELDDashboard[[#This Row],[Period]] -> 2022-04-01 | K29: =SUM(B18:B29) -> 3741 | L29: 1755 | M29: 45 | N29: 814 | O29: 1 | P29: 303 | R29: 2021-03-01 | S29: 290 | T29: 147 | U29: 2 | V29: 99 | W29: 1 | X29: 45 | Y29: 3700.458
A30: 2022-05-01 | B30: 503 | C30: 266 | D30: 4 | E30: 83 | F30: 1 | G30: 35 | H30: 3857.494285 | J30: =vELDDashboard[[#This Row],[Period]] -> 2022-05-01 | K30: =SUM(B19:B30) -> 4057 | L30: 1952 | M30: 47 | N30: 852 | O30: 2 | P30: 336 | R30: 2021-04-01 | S30: 302 | T30: 132 | U30: 4 | V30: 87 | W30: 0 | X30: 29 | Y30: 3493.789655
A31: 2022-06-01 | B31: 463 | C31: 224 | D31: 7 | E31: 75 | F31: 1 | G31: 19 | H31: 3958.01421 | J31: =vELDDashboard[[#This Row],[Period]] -> 2022-06-01 | K31: =SUM(B20:B31) -> 4383 | L31: 2117 | M31: 54 | N31: 892 | O31: 3 | P31: 354 | R31: 2021-05-01 | S31: 240 | T31: 129 | U31: 1 | V31: 84 | W31: 0 | X31: 44 | Y31: 3907.815681
A32: 2022-07-01 | B32: 452 | C32: 426 | D32: 8 | E32: 61 | F32: 0 | G32: 27 | H32: 3708.055555 | J32: =vELDDashboard[[#This Row],[Period]] -> 2022-07-01 | K32: =SUM(B21:B32) -> 4627 | L32: 2478 | M32: 61 | N32: 918 | O32: 3 | P32: 378 | R32: 2021-06-01 | S32: 258 | T32: 190 | U32: 1 | V32: 69 | W32: 1 | X32: 17 | Y32: 4477.42647
A33: 2022-08-01 | B33: 505 | C33: 362 | D33: 9 | E33: 66 | F33: 0 | G33: 25 | H33: 4221.534 | J33: =vELDDashboard[[#This Row],[Period]] -> 2022-08-01 | K33: =SUM(B22:B33) -> 4845 | L33: 2781 | M33: 69 | N33: 944 | O33: 3 | P33: 402 | R33: 2021-07-01 | S33: 411 | T33: 154 | U33: 2 | V33: 65 | W33: 0 | X33: 35 | Y33: 3377.421428
A34: 2022-09-01 | B34: 409 | C34: 257 | D34: 8 | E34: 74 | F34: 1 | G34: 33 | H34: 4747.877272 | J34: =vELDDashboard[[#This Row],[Period]] -> 2022-09-01 | K34: =SUM(B23:B34) -> 4918 | L34: 2925 | M34: 69 | N34: 945 | O34: 4 | P34: 414 | R34: 2021-08-01 | S34: 310 | T34: 186 | U34: 2 | V34: 70 | W34: 0 | X34: 23 | Y34: 3008.734782
A35: 2022-10-01 | B35: 447 | C35: 298 | D35: 3 | E35: 71 | F35: 0 | G35: 36 | H35: 3836.775 | J35: =vELDDashboard[[#This Row],[Period]] -> 2022-10-01 | K35: =SUM(B24:B35) -> 5006 | L35: 3051 | M35: 68 | N35: 945 | O35: 4 | P35: 404 | R35: 2021-09-01 | S35: 322 | T35: 187 | U35: 9 | V35: 88 | W35: 0 | X35: 56 | Y35: 3245.840178
A36: 2022-11-01 | B36: 495 | C36: 257 | D36: 3 | E36: 86 | F36: 1 | G36: 29 | H36: 5012.076896 | J36: =vELDDashboard[[#This Row],[Period]] -> 2022-11-01 | K36: =SUM(B25:B36) -> 5072 | L36: 3112 | M36: 65 | N36: 922 | O36: 4 | P36: 396 | R36: 2021-10-01 | S36: 335 | T36: 162 | U36: 4 | V36: 70 | W36: 0 | X36: 46 | Y36: 3487.340217
A37: 2022-12-01 | B37: 351 | C37: 263 | D37: 6 | E37: 81 | F37: 0 | G37: 32 | H37: 3439.247812 | J37: =vELDDashboard[[#This Row],[Period]] -> 2022-12-01 | K37: =SUM(B26:B37) -> 5141 | L37: 3167 | M37: 67 | N37: 910 | O37: 4 | P37: 397 | R37: 2021-11-01 | S37: 408 | T37: 180 | U37: 6 | V37: 100 | W37: 1 | X37: 37 | Y37: 3714.316756
A38: 2023-01-01 | B38: 501 | C38: 317 | D38: 8 | E38: 71 | F38: 0 | G38: 55 | H38: 3662.128363 | J38: =vELDDashboard[[#This Row],[Period]] -> 2023-01-01 | K38: =SUM(B27:B38) -> 5261 | L38: 3281 | M38: 70 | N38: 883 | O38: 4 | P38: 390 | R38: 2021-12-01 | S38: 252 | T38: 194 | U38: 4 | V38: 90 | W38: 0 | X38: 31 | Y38: 3321.544838
A39: 2023-02-01 | B39: 521 | C39: 229 | D39: 3 | E39: 76 | F39: 0 | G39: 23 | H39: 4206.8 | J39: =vELDDashboard[[#This Row],[Period]] -> 2023-02-01 | K39: =SUM(B28:B39) -> 5455 | L39: 3341 | M39: 69 | N39: 897 | O39: 4 | P39: 353 | R39: 2022-01-01 | S39: 360 | T39: 192 | U39: 5 | V39: 92 | W39: 0 | X39: 63 | Y39: 3527.666825
A40: 2023-03-01 | B40: 533 | C40: 352 | D40: 10 | E40: 120 | F40: 0 | G40: 35 | H40: 3586.473428 | J40: =vELDDashboard[[#This Row],[Period]] -> 2023-03-01 | K40: =SUM(B29:B40) -> 5540 | L40: 3454 | M40: 74 | N40: 946 | O40: 4 | P40: 356 | R40: 2022-02-01 | S40: 308 | T40: 160 | U40: 4 | V40: 59 | W40: 0 | X40: 63 | Y40: 3380.203333
A41: 2023-04-01 | B41: 543 | C41: 270 | D41: 4 | E41: 81 | F41: 0 | G41: 29 | H41: 3567.691724 | J41: =vELDDashboard[[#This Row],[Period]] -> 2023-04-01 | K41: =SUM(B30:B41) -> 5723 | L41: 3521 | M41: 73 | N41: 945 | O41: 4 | P41: 378 | R41: 2022-03-01 | S41: 416 | T41: 223 | U41: 5 | V41: 71 | W41: 0 | X41: 36 | Y41: 4066.627777
A42: 2023-05-01 | B42: 614 | C42: 226 | D42: 12 | E42: 98 | F42: 0 | G42: 64 | H42: 3785.452187 | J42: =vELDDashboard[[#This Row],[Period]] -> 2023-05-01 | K42: =SUM(B31:B42) -> 5834 | L42: 3481 | M42: 81 | N42: 960 | O42: 3 | P42: 407 | R42: 2022-04-01 | S42: 329 | T42: 186 | U42: 5 | V42: 79 | W42: 0 | X42: 7 | Y42: 4384.605714
A43: 2023-06-01 | B43: 640 | C43: 456 | D43: 4 | E43: 95 | F43: 0 | G43: 49 | H43: 3379.112244 | J43: =vELDDashboard[[#This Row],[Period]] -> 2023-06-01 | K43: =SUM(B32:B43) -> 6011 | L43: 3713 | M43: 78 | N43: 980 | O43: 2 | P43: 437 | R43: 2022-05-01 | S43: 394 | T43: 246 | U43: 4 | V43: 76 | W43: 1 | X43: 36 | Y43: 3896.656388
A44: 2023-07-01 | B44: 695 | C44: 425 | D44: 6 | E44: 126 | F44: 0 | G44: 40 | H44: 3552.074 | J44: =vELDDashboard[[#This Row],[Period]] -> 2023-07-01 | K44: =SUM(B33:B44) -> 6254 | L44: 3712 | M44: 76 | N44: 1045 | O44: 2 | P44: 450 | R44: 2022-06-01 | S44: 487 | T44: 210 | U44: 7 | V44: 70 | W44: 1 | X44: 19 | Y44: 3997.487894
A45: 2023-08-01 | B45: 1001 | C45: 428 | D45: 8 | E45: 198 | F45: 0 | G45: 47 | H45: 3686.551063 | J45: =vELDDashboard[[#This Row],[Period]] -> 2023-08-01 | K45: =SUM(B34:B45) -> 6750 | L45: 3778 | M45: =SUM(D34:D45) -> 75 | N45: 1177 | O45: 2 | P45: 472 | R45: 2022-07-01 | S45: 427 | T45: 417 | U45: 9 | V45: 56 | W45: 0 | X45: 28 | Y45: 3584.553571
A46: 2023-09-01 | B46: 3515 | C46: 443 | D46: 3 | E46: 405 | F46: 0 | G46: 91 | H46: 3420.821978 | J46: =vELDDashboard[[#This Row],[Period]] -> 2023-09-01 | K46: =SUM(B35:B46) -> 9856 | L46: 3964 | M46: 70 | N46: 1508 | O46: 1 | P46: 530 | R46: 2022-08-01 | S46: 492 | T46: 332 | U46: 9 | V46: 63 | W46: 0 | X46: 25 | Y46: 4211.534
A47: 2023-10-01 | B47: 423 | C47: 1009 | D47: 3 | E47: 447 | F47: 0 | G47: 53 | H47: 3185.367924 | J47: =vELDDashboard[[#This Row],[Period]] -> 2023-10-01 | K47: =SUM(B36:B47) -> 9832 | L47: 4675 | M47: 70 | N47: 1884 | O47: 1 | P47: 547 | R47: 2022-09-01 | S47: 392 | T47: 236 | U47: 8 | V47: 73 | W47: 1 | X47: 33 | Y47: 4464.692121
A48: 2023-11-01 | B48: 468 | C48: 1726 | D48: 9 | E48: 220 | F48: 0 | G48: 42 | H48: 3973.555 | J48: =vELDDashboard[[#This Row],[Period]] -> 2023-11-01 | K48: =SUM(B37:B48) -> 9805 | L48: 6144 | M48: 76 | N48: 2018 | O48: 0 | P48: 560 | R48: 2022-10-01 | S48: 417 | T48: 279 | U48: 3 | V48: 64 | W48: 0 | X48: 37 | Y48: 3634.356756
A49: 2023-12-01 | B49: 211 | C49: 336 | D49: 3 | E49: 49 | F49: 0 | G49: 73 | H49: 3188.671506 | J49: =vELDDashboard[[#This Row],[Period]] -> 2023-12-01 | K49: =SUM(B38:B49) -> 9665 | L49: 6217 | M49: 73 | N49: 1986 | O49: 0 | P49: 601 | R49: 2022-11-01 | S49: 427 | T49: 243 | U49: 3 | V49: 84 | W49: 1 | X49: 29 | Y49: 4357.831034
A50: 2024-01-01 | B50: 451 | C50: 260 | D50: 11 | E50: 45 | F50: 0 | G50: 33 | H50: 3724.128181 | J50: =vELDDashboard[[#This Row],[Period]] -> 2024-01-01 | K50: =SUM(B39:B50) -> 9615 | L50: 6160 | M50: 76 | N50: 1960 | O50: 0 | P50: 579 | R50: 2022-12-01 | S50: 289 | T50: 251 | U50: 6 | V50: 69 | W50: 0 | X50: 32 | Y50: 3895.497812
A51: 2024-02-01 | B51: 438 | C51: 294 | D51: 8 | E51: 74 | F51: 0 | G51: 69 | H51: 3292.753623 | J51: =vELDDashboard[[#This Row],[Period]] -> 2024-02-01 | K51: =SUM(B40:B51) -> 9532 | L51: 6225 | M51: 81 | N51: 1958 | O51: 0 | P51: 625 | R51: 2023-01-01 | S51: 489 | T51: 294 | U51: 8 | V51: 69 | W51: 0 | X51: 55 | Y51: 3662.128363
A52: 2024-03-01 | B52: 570 | C52: 307 | D52: 5 | E52: 48 | F52: 0 | G52: 53 | H52: 4435.132075 | J52: =vELDDashboard[[#This Row],[Period]] -> 2024-03-01 | K52: =SUM(B41:B52) -> 9569 | L52: 6180 | M52: 76 | N52: 1886 | O52: 0 | P52: 643 | R52: 2023-02-01 | S52: 508 | T52: 198 | U52: 3 | V52: 70 | W52: 0 | X52: 19 | Y52: 4284.547368
A53: 2024-04-01 | B53: 424 | C53: 536 | D53: 7 | E53: 43 | F53: 1 | G53: 18 | H53: 3513.388888 | J53: =vELDDashboard[[#This Row],[Period]] -> 2024-04-01 | K53: =SUM(B42:B53) -> 9450 | L53: =SUM(C42:C53) -> 6446 | M53: 79 | N53: 1848 | O53: 1 | P53: 632 | R53: 2023-03-01 | S53: 452 | T53: 294 | U53: 9 | V53: 106 | W53: 0 | X53: 34 | Y53: 3586.075588
A54: 2024-05-01 | B54: 243 | C54: 372 | D54: 6 | E54: 37 | F54: 0 | G54: 37 | H54: 3202 | J54: =vELDDashboard[[#This Row],[Period]] -> 2024-05-01 | K54: =SUM(B43:B54) -> 9079 | L54: 6592 | M54: 73 | N54: =SUM(E43:E54) -> 1787 | O54: 1 | P54: =SUM(G43:G54) -> 605 | R54: 2023-04-01 | S54: 534 | T54: 243 | U54: 4 | V54: 75 | W54: 0 | X54: 29 | Y54: 3567.691724
R55: 2023-05-01 | S55: 605 | T55: 204 | U55: 12 | V55: 90 | W55: 0 | X55: 64 | Y55: 3827.930781
R56: 2023-06-01 | S56: 620 | T56: 437 | U56: 4 | V56: 88 | W56: 0 | X56: 48 | Y56: 3391.3125
R57: 2023-07-01 | S57: 681 | T57: 407 | U57: 6 | V57: 115 | W57: 0 | X57: 40 | Y57: 3578.814
R58: 2023-08-01 | S58: 942 | T58: 410 | U58: 8 | V58: 176 | W58: 0 | X58: 47 | Y58: 3724.151063
R59: 2023-09-01 | S59: 3397 | T59: 424 | U59: 3 | V59: 366 | W59: 0 | X59: 50 | Y59: 3667.8904
R60: 2023-10-01 | S60: 414 | T60: 977 | U60: 3 | V60: 398 | W60: 0 | X60: 53 | Y60: 3354.669811
R61: 2023-11-01 | S61: 458 | T61: 1711 | U61: 9 | V61: 197 | W61: 0 | X61: 42 | Y61: 4025.859761
R62: 2023-12-01 | S62: 209 | T62: 330 | U62: 3 | V62: 43 | W62: 0 | X62: 73 | Y62: 3342.43863
R63: 2024-01-01 | S63: 451 | T63: 260 | U63: 11 | V63: 45 | W63: 0 | X63: 33 | Y63: 3724.128181
R64: 2024-02-01 | S64: 438 | T64: 294 | U64: 8 | V64: 74 | W64: 0 | X64: 69 | Y64: 3292.753623
R65: 2024-03-01 | S65: 570 | T65: 307 | U65: 5 | V65: 48 | W65: 0 | X65: 53 | Y65: 4435.132075
R66: 2024-04-01 | S66: 424 | T66: 536 | U66: 7 | V66: 43 | W66: 1 | X66: 18 | Y66: 3513.388888
R67: 2024-05-01 | S67: 243 | T67: 372 | U67: 6 | V67: 37 | W67: 0 | X67: 37 | Y67: 3202

Sheet Year Calculations (hidden)
A1: Period | B1: CNFs sent | C1: CNFs left at stage 1 | D1: Stage 2 exit | E1: Exit process | F1: Court pack | G1: Settled claims
A2: 2013-14 | B2: =SUM('Backing Sheet Data'!#REF!) ->  | C2: =SUM('Backing Sheet Data'!#REF!) ->  | D2: =SUM('Backing Sheet Data'!#REF!) ->  | E2: =SUM('Backing Sheet Data'!#REF!) ->  | F2: =SUM('Backing Sheet Data'!#REF!) ->  | G2: =SUM('Backing Sheet Data'!#REF!) -> 
A3: 2014-15 | B3: =SUM('Backing Sheet Data'!#REF!) ->  | C3: =SUM('Backing Sheet Data'!#REF!) ->  | D3: =SUM('Backing Sheet Data'!#REF!) ->  | E3: =SUM('Backing Sheet Data'!#REF!) ->  | F3: =SUM('Backing Sheet Data'!#REF!) ->  | G3: =SUM('Backing Sheet Data'!#REF!) -> 
A4: 2015-16 | B4: =SUM('Backing Sheet Data'!#REF!) ->  | C4: =SUM('Backing Sheet Data'!#REF!) ->  | D4: =SUM('Backing Sheet Data'!#REF!) ->  | E4: =SUM('Backing Sheet Data'!#REF!) ->  | F4: =SUM('Backing Sheet Data'!#REF!) ->  | G4: =SUM('Backing Sheet Data'!#REF!) -> 
A5: 2016-17 | B5: =SUM('Backing Sheet Data'!#REF!) ->  | C5: =SUM('Backing Sheet Data'!#REF!) ->  | D5: =SUM('Backing Sheet Data'!#REF!) ->  | E5: =SUM('Backing Sheet Data'!#REF!) ->  | F5: =SUM('Backing Sheet Data'!#REF!) ->  | G5: =SUM('Backing Sheet Data'!#REF!) -> 
A6: 2017-18 | B6: =SUM('Backing Sheet Data'!#REF!) ->  | C6: =SUM('Backing Sheet Data'!#REF!) ->  | D6: =SUM('Backing Sheet Data'!#REF!) ->  | E6: =SUM('Backing Sheet Data'!#REF!) ->  | F6: =SUM('Backing Sheet Data'!#REF!) ->  | G6: =SUM('Backing Sheet Data'!#REF!) -> 
A7: 2018-19 | B7: =SUM('Backing Sheet Data'!#REF!) ->  | C7: =SUM('Backing Sheet Data'!#REF!) ->  | D7: =SUM('Backing Sheet Data'!#REF!) ->  | E7: =SUM('Backing Sheet Data'!#REF!) ->  | F7: =SUM('Backing Sheet Data'!#REF!) ->  | G7: =SUM('Backing Sheet Data'!#REF!) -> 
A8: 2019-20 | B8: =SUM('Backing Sheet Data'!#REF!) ->  | C8: =SUM('Backing Sheet Data'!#REF!) ->  | D8: =SUM('Backing Sheet Data'!#REF!) ->  | E8: =SUM('Backing Sheet Data'!#REF!) ->  | F8: =SUM('Backing Sheet Data'!#REF!) ->  | G8: =SUM('Backing Sheet Data'!#REF!) -> 
A9: 2020-21 | B9: =SUM('Backing Sheet Data'!#REF!) ->  | C9: =SUM('Backing Sheet Data'!#REF!) ->  | D9: =SUM('Backing Sheet Data'!#REF!) ->  | E9: =SUM('Backing Sheet Data'!#REF!) ->  | F9: =SUM('Backing Sheet Data'!#REF!) ->  | G9: =SUM('Backing Sheet Data'!#REF!) -> 
